bitfinex-derivatives/quotes_ETHF0:USTF0_20250604
["timestamp","ask_amount","ask_price","bid_price","bid_amount"]
[1749073802332,1.68944122,2623.2,2623.1,24.40210788]
[1749073810332,1.68944122,2623.2,2623.1,1.80410788]
[1749073810528,1.68944122,2623.2,2623.1,24.25210788]
[1749073811437,1.68944122,2623.2,2623.1,24.24810788]
[1749073812135,1.68944122,2623.2,2623.1,1.80410788]
[1749073812331,1.68944122,2623.2,2623.1,24.24410788]
[1749073813937,1.68944122,2623.2,2623.1,24.24210788]
[1749073815241,1.90461,2624.0,2623.3,0.3818]
[1749073815539,0.76196,2623.6,2623.5,0.76196]
[1749073815739,2.56207,2623.8,2623.3,0.3818]
[1749073815941,2.04028,2623.5,2623.4,22.8518]
[1749073817136,0.76201,2623.4,2623.3,1.14383]
[1749073817336,0.76201,2623.4,2623.3,23.60883]
[1749073817337,2.04201,2623.4,2623.3,23.60883]
[1749073817535,2.04201,2623.4,2623.3,1.14383]
[1749073817736,2.04201,2623.4,2623.3,22.8448]
[1749073818138,2.04201,2623.4,2623.3,23.60683]
[1749073818437,2.04201,2623.4,2623.3,1.14383]
[1749073818637,2.04201,2623.4,2623.3,23.60283]
[1749073820342,2.04201,2623.4,2623.3,1.14383]
[1749073820643,2.04201,2623.4,2623.3,23.59383]
[1749073822146,2.04201,2623.4,2623.3,1.14383]
[1749073822341,2.04201,2623.4,2623.3,23.58483]
[1749073822741,0.76203,2623.3,2623.2,1.14385]
[1749073823044,2.05663,2623.3,2623.2,24.10197896]
[1749073823244,2.67363,2623.3,2623.2,24.10197896]
[1749073823445,2.67363,2623.3,2623.2,24.10199334]
[1749073823744,2.67363,2623.3,2623.2,1.14385]
[1749073823939,2.67363,2623.3,2623.2,23.57885]
[1749073827251,3.57559698,2623.3,2623.2,23.57885]
[1749073829242,2.67363,2623.3,2623.2,23.57885]
[1749073829452,3.57561718,2623.3,2623.2,23.57885]
[1749073831450,3.57561718,2623.3,2623.2,24.10622639]
[1749073832450,3.57561718,2623.3,2623.2,23.57885]
[1749073833752,2.67363,2623.3,2623.2,23.57885]
[1749073833956,1.65702152,2623.3,2623.2,23.57885]
[1749073834551,1.65702152,2623.3,2623.2,1.14385]
[1749073834755,1.65702152,2623.3,2623.2,23.53085]
[1749073835552,1.65702152,2623.3,2623.2,23.53785]
[1749073836547,1.65702152,2623.3,2623.2,1.14385]
[1749073836752,1.65702152,2623.3,2623.2,23.53385]
[1749073837150,1.65702152,2623.3,2623.2,23.53085]
[1749073837655,1.65702152,2623.3,2623.2,1.14385]
[1749073837845,1.65702152,2623.3,2623.2,23.53085]
[1749073839256,1.65702152,2623.3,2623.2,24.06305274]
[1749073839456,1.65702152,2623.3,2623.2,23.53085]
[1749073840148,1.65702152,2623.3,2623.2,24.01012005]
[1749073840349,1.65702152,2623.3,2623.2,24.01015039]
[1749073841153,1.65702152,2623.3,2623.2,23.47785]
[1749073841952,1.65702152,2623.3,2623.2,24.00735591]
[1749073842152,1.65702152,2623.3,2623.2,23.47785]
[1749073842756,0.76203,2623.3,2623.2,23.47785]
[1749073843055,1.64914025,2623.3,2623.2,23.47785]
[1749073843757,1.64914025,2623.3,2623.2,23.46485]
[1749073845655,1.64914025,2623.3,2623.2,23.08305]
[1749073847461,1.64914025,2623.3,2623.2,23.61528739]
[1749073847964,1.64914025,2623.3,2623.2,23.44645]
[1749073848461,1.64914025,2623.3,2623.2,23.97873656]
[1749073848665,1.64914025,2623.3,2623.2,23.44645]
[1749073848961,1.64914025,2623.3,2623.2,23.97870591]
[1749073849164,1.64914025,2623.3,2623.2,23.21665591]
[1749073849562,1.64914025,2623.3,2623.2,23.21341806]
[1749073849762,1.64914025,2623.3,2623.2,22.6844]
[1749073850360,1.64914025,2623.3,2623.2,23.9760502]
[1749073850556,1.64914025,2623.3,2623.2,23.44646]
[1749073850859,1.64914025,2623.3,2623.2,23.97261935]
[1749073851462,1.64914025,2623.3,2623.2,23.44646]
[1749073851762,1.64914025,2623.3,2623.2,23.43846]
[1749073851962,1.64265919,2623.3,2623.2,23.43846]
[1749073852365,1.64265919,2623.3,2623.2,23.96463501]
[1749073852768,1.64265919,2623.3,2623.2,23.43846]
[1749073854663,1.64265919,2623.3,2623.2,1.66908006]
[1749073855165,1.64265919,2623.3,2623.2,23.97917961]
[1749073855366,1.64265919,2623.3,2623.2,23.45346]
[1749073855568,1.64265919,2623.3,2623.2,23.45146]
[1749073855868,1.64265919,2623.3,2623.2,23.07006]
[1749073856472,1.64265919,2623.3,2623.2,23.45146]
[1749073856672,1.64265919,2623.3,2623.2,23.98325347]
[1749073856971,1.64265919,2623.3,2623.2,23.98328678]
[1749073857157,1.64265919,2623.3,2623.2,23.45146]
[1749073857558,1.64265919,2623.3,2623.2,5.56136293]
[1749073857759,1.64265919,2623.3,2623.2,23.21010074]
[1749073858464,1.64265919,2623.3,2623.2,23.21067672]
[1749073858665,1.64265919,2623.3,2623.2,22.6754]
[1749073859368,1.64265919,2623.3,2623.2,23.96774886]
[1749073859667,1.64265919,2623.3,2623.2,23.96774697]
[1749073859866,1.64265919,2623.3,2623.2,1.67374697]
[1749073860174,1.64265919,2623.3,2623.2,23.96332492]
[1749073860466,1.64265919,2623.3,2623.2,1.14346]
[1749073860664,1.64265919,2623.3,2623.2,23.43646]
[1749073860864,0.76203,2623.3,2623.2,23.43646]
[1749073861066,1.63535962,2623.3,2623.2,23.96321126]
[1749073861267,1.63535962,2623.3,2623.2,25.28091126]
[1749073861473,1.63535962,2623.3,2623.2,23.96321126]
[1749073862067,1.63535962,2623.3,2623.2,23.96341497]
[1749073862267,1.63535962,2623.3,2623.2,23.43646]
[1749073862672,1.63535962,2623.3,2623.2,23.96332568]
[1749073862870,1.63535962,2623.3,2623.2,23.43646]
[1749073863170,1.63535962,2623.3,2623.2,23.96233663]
[1749073863469,1.63535962,2623.3,2623.2,23.96233397]
[1749073863670,1.63535962,2623.3,2623.2,23.96233201]
[1749073863872,1.63535962,2623.3,2623.2,23.43646]
[1749073864574,1.63535962,2623.3,2623.2,22.6744]
[1749073864874,1.63535962,2623.3,2623.2,23.19687029]
[1749073865572,1.63480829,2623.3,2623.2,23.95889169]
[1749073865776,1.63480829,2623.3,2623.2,23.43646]
[1749073866172,1.63480829,2623.3,2623.2,1.14346]
[1749073866473,2.87450829,2623.3,2623.2,23.97602134]
[1749073867274,2.87450829,2623.3,2623.2,23.43646]
[1749073867772,2.87450829,2623.3,2623.2,23.97621495]
[1749073867970,2.87450829,2623.3,2623.2,23.43646]
[1749073868368,2.87450829,2623.3,2623.2,23.21411179]
[1749073869078,2.87450829,2623.3,2623.2,22.6744]
[1749073869472,2.87450829,2623.3,2623.2,23.21184698]
[1749073869771,2.87450829,2623.3,2623.2,22.6744]
[1749073869973,2.8744493,2623.3,2623.2,22.6744]
[1749073870176,2.8744493,2623.3,2623.2,23.21184609]
[1749073870371,2.8744493,2623.3,2623.2,22.6744]
[1749073870774,2.8744493,2623.3,2623.2,23.21184283]
[1749073871077,2.8744493,2623.3,2623.2,23.18465009]
[1749073871276,2.8744493,2623.3,2623.2,22.6504]
[1749073871479,2.8744493,2623.3,2623.2,23.18464712]
[1749073871677,2.8744493,2623.3,2623.2,22.6504]
[1749073871978,2.8744493,2623.3,2623.2,0.9156465]
[1749073872181,2.8744493,2623.3,2623.2,23.1846465]
[1749073872582,2.8744493,2623.3,2623.2,0.9156465]
[1749073872879,2.8744493,2623.3,2623.2,22.6504]
[1749073873277,2.8744493,2623.3,2623.2,23.17873226]
[1749073873482,2.8744493,2623.3,2623.2,22.6504]
[1749073874084,2.8744493,2623.3,2623.2,23.17861738]
[1749073874285,2.8744493,2623.3,2623.2,23.17860249]
[1749073874484,2.86412278,2623.3,2623.2,23.17863643]
[1749073874685,2.86412278,2623.3,2623.2,22.6504]
[1749073875583,2.86412278,2623.3,2623.2,0.3814]
[1749073875788,2.86412278,2623.3,2623.2,22.6504]
[1749073876985,1.62442278,2623.3,2623.2,22.6504]
[1749073877987,1.62442278,2623.3,2623.2,0.3814]
[1749073878188,1.62442278,2623.3,2623.2,22.6504]
[1749073878993,1.62430438,2623.3,2623.2,22.6504]
[1749073879992,1.62430438,2623.3,2623.2,0.3814]
[1749073880194,2.91490438,2623.3,2623.2,23.41246]
[1749073881890,2.91490438,2623.3,2623.2,1.14346]
[1749073882079,2.91490438,2623.3,2623.2,23.41246]
[1749073882686,2.91490438,2623.3,2623.2,1.14346]
[1749073882887,2.91490438,2623.3,2623.2,23.41246]
[1749073883589,2.91470121,2623.3,2623.2,23.41246]
[1749073884087,1.62410121,2623.3,2623.2,23.41246]
[1749073885389,1.62410121,2623.3,2623.2,5.76646]
[1749073885595,1.62410121,2623.3,2623.2,23.41146]
[1749073885997,1.62410121,2623.3,2623.2,1.14346]
[1749073886198,1.62410121,2623.3,2623.2,22.6494]
[1749073886596,1.62410121,2623.3,2623.2,23.41146]
[1749073887996,0.76203,2623.3,2623.2,23.41146]
[1749073888194,1.62416314,2623.3,2623.2,23.41146]
[1749073891601,1.62416314,2623.3,2623.2,22.6494]
[1749073891898,1.62416314,2623.3,2623.2,23.41146]
[1749073892599,1.62440437,2623.3,2623.2,23.41146]
[1749073897505,1.62440437,2623.3,2623.2,1.14346]
[1749073897704,1.62440437,2623.3,2623.2,23.40946]
[1749073898002,1.62440437,2623.3,2623.2,1.14346]
[1749073898304,1.62440437,2623.3,2623.2,23.40946]
[1749073901206,1.62440437,2623.3,2623.2,23.40646]
[1749073903099,1.62449062,2623.3,2623.2,23.40646]
[1749073906302,1.62326909,2623.3,2623.2,23.40646]
[1749073910713,1.6233518,2623.3,2623.2,23.40646]
[1749073914214,1.6233518,2623.3,2623.2,0.3814]
[1749073914410,1.6233518,2623.3,2623.2,22.6414]
[1749073915508,1.6233518,2623.3,2623.2,23.40346]
[1749073919410,1.6233518,2623.3,2623.2,23.40246]
[1749073920015,1.6233518,2623.3,2623.2,23.02106]
[1749073921511,1.6233518,2623.3,2623.2,22.259]
[1749073923017,1.6233518,2623.3,2623.2,23.02106]
[1749073923618,1.6233518,2623.3,2623.2,22.259]
[1749073924118,0.76206,2623.2,2623.1,1.42228788]
[1749073924307,1.63162078,2623.2,2623.1,23.68028788]
[1749073928721,0.76206,2623.2,2623.1,23.68028788]
[1749073929118,1.63188147,2623.2,2623.1,23.68028788]
[1749073932714,0.86982147,2623.2,2623.1,23.68028788]
[1749073933025,0.86923974,2623.2,2623.1,29.06170788]
[1749073933324,0.762,2623.5,2623.4,0.76198]
[1749073933526,1.63108662,2623.5,2623.4,5.37798]
[1749073936120,1.63108662,2623.5,2623.4,0.76198]
[1749073936427,1.63108662,2623.5,2623.4,23.01198]
[1749073936925,1.63108662,2623.5,2623.4,22.25]
[1749073937124,1.63108662,2623.5,2623.4,23.01201]
[1749073937722,0.762,2623.5,2623.4,23.01201]
[1749073938219,1.63114836,2623.5,2623.4,23.01201]
[1749073938524,0.86914836,2623.5,2623.4,23.01201]
[1749073938828,0.86914836,2623.5,2623.4,28.01201]
[1749073939031,0.86914836,2623.5,2623.4,29.31201]
[1749073939223,0.86914836,2623.5,2623.4,5.76201]
[1749073939423,0.76191,2623.8,2623.4,28.01101]
[1749073939726,0.86860887,2623.7,2623.6,0.76195]
[1749073940326,1.63052887,2623.7,2623.6,0.76195]
[1749073940530,1.63052887,2623.7,2623.6,23.00995]
[1749073941532,0.76192,2623.7,2623.6,0.76195]
[1749073941725,0.76192,2623.7,2623.6,23.00895]
[1749073942531,0.76192,2623.7,2623.6,0.76195]
[1749073942731,0.76192,2623.7,2623.6,23.39035]
[1749073943334,0.76192,2623.7,2623.6,0.76195]
[1749073943635,1.62984772,2623.7,2623.6,23.00795]
[1749073943831,3.53344772,2623.7,2623.6,23.00795]
[1749073944033,3.53344772,2623.7,2623.6,0.76195]
[1749073944521,3.53344772,2623.7,2623.6,23.00795]
[1749073946737,3.52670642,2623.7,2623.6,23.00795]
[1749073947039,0.76195,2623.6,2623.5,3.96975]
[1749073947334,1.62313642,2623.6,2623.5,26.21375]
[1749073947534,1.62313642,2623.6,2623.5,23.00595]
[1749073947535,2.16188642,2623.6,2623.5,23.00595]
[1749073949334,2.16188642,2623.6,2623.3,0.3814]
[1749073949540,2.93806144,2623.5,2623.4,0.76198]
[1749073949740,0.76202,2623.4,2623.3,0.76201]
[1749073950038,2.68942,2623.4,2623.3,0.76201]
[1749073950339,2.68942,2623.4,2623.3,23.00501]
[1749073950538,2.68942,2623.4,2623.3,1.14341]
[1749073950728,2.68942,2623.4,2623.3,23.38641]
[1749073950729,3.55010775,2623.4,2623.3,23.38641]
[1749073952739,3.55010775,2623.4,2623.3,23.38541]
[1749073954838,3.55010775,2623.4,2623.3,5.75941]
[1749073955038,3.55010775,2623.4,2623.3,22.6234]
[1749073959240,3.55010775,2623.4,2623.3,23.38543]
[1749073959446,3.55010775,2623.4,2623.3,23.38443]
[1749073959740,3.55010775,2623.4,2623.3,22.6224]
[1749073960240,3.55010775,2623.4,2623.3,4.9974]
[1749073960440,3.55022546,2623.4,2623.3,22.6214]
[1749073961530,2.68942,2623.4,2623.3,22.6214]
[1749073961839,3.55030304,2623.4,2623.3,22.6214]
[1749073963147,3.55041162,2623.4,2623.3,22.6214]
[1749073965045,3.54859573,2623.4,2623.3,0.3814]
[1749073965246,1.62119573,2623.4,2623.3,23.37643]
[1749073965638,1.62119573,2623.4,2623.3,0.3814]
[1749073965840,1.62119573,2623.4,2623.3,22.6144]
[1749073966344,1.62119573,2623.4,2623.3,22.233]
[1749073967748,0.76203,2623.3,2623.2,5.25276]
[1749073968049,1.62120573,2623.3,2623.2,9.86276]
[1749073969653,1.62067269,2623.3,2623.2,9.86276]
[1749073971652,1.62067269,2623.3,2623.2,9.1007]
[1749073971855,1.62067269,2623.3,2623.2,4.4907]
[1749073972046,1.62067269,2623.3,2623.2,26.7227]
[1749073974754,1.62067269,2623.3,2623.2,27.48476]
[1749073975154,1.62067269,2623.3,2623.2,26.7227]
[1749073975548,1.62067269,2623.3,2623.2,27.48476]
[1749073980947,1.62067269,2623.3,2623.2,26.7227]
[1749073981557,1.62067269,2623.3,2623.2,27.48477]
[1749073984261,12.9318,2624.4,2623.2,32.1041]
[1749073984559,0.76191,2623.8,2623.5,5.11275]
[1749073984757,0.76191,2623.8,2623.6,5.8691]
[1749073986363,0.76191,2623.8,2623.7,0.76191]
[1749073986955,0.76188,2623.9,2623.8,0.76187]
[1749073987155,0.76191,2623.8,2623.7,0.7619]
[1749073987357,0.76191,2623.8,2623.7,22.9899]
[1749073987655,0.76191,2623.8,2623.6,1.2581]
[1749073987860,0.76192,2623.7,2623.6,2.02003]
[1749073988063,0.76192,2623.7,2623.6,6.63003]
[1749073988259,0.76192,2623.7,2623.6,1.2581]
[1749073988562,0.76192,2623.7,2623.6,22.8566]
[1749073989366,0.76192,2623.7,2623.6,0.6296]
[1749073989572,1.41182,2623.7,2623.6,22.8556]
[1749073989870,0.76198,2623.5,2623.4,0.76199]
[1749073990063,0.76198,2623.5,2623.4,5.37199]
[1749073994160,0.76188,2623.9,2623.4,4.61]
[1749073994360,0.00568076,2624.1,2623.8,3.2078]
[1749073994562,0.76750076,2624.1,2624.0,0.76183]
[1749073996369,0.76183,2624.0,2623.9,5.98714]
[1749073996563,1.6439686,2624.0,2623.9,5.98714]
[1749073998667,0.76183,2624.0,2623.9,5.98714]
[1749074000970,0.76183,2624.0,2623.9,23.59614]
[1749074001473,0.00568076,2624.1,2624.0,0.76183]
[1749074001677,0.76749076,2624.1,2624.0,0.76183]
[1749074001876,0.88725343,2624.1,2624.0,0.76183]
[1749074002580,0.88725343,2624.1,2624.0,5.36583]
[1749074002581,0.88717338,2624.1,2624.0,5.36583]
[1749074003179,1.64898338,2624.1,2624.0,5.36583]
[1749074005182,1.64898338,2624.1,2623.9,18.2303]
[1749074005183,0.76183,2624.0,2623.9,18.2283]
[1749074005477,3.54622675,2624.0,2623.9,23.59416]
[1749074005678,3.54623161,2624.0,2623.9,23.59416]
[1749074005881,3.54623161,2624.0,2623.9,4.604]
[1749074006578,0.76189,2623.8,2623.7,1.41552]
[1749074006775,0.76189,2623.8,2623.7,23.62652]
[1749074007174,0.76189,2623.8,2623.7,1.41552]
[1749074007376,0.76189,2623.8,2623.7,22.97292]
[1749074008479,0.76189,2623.8,2623.7,0.76192]
[1749074008681,4.85267364,2623.8,2623.7,4.604]
[1749074010281,0.76204,2623.3,2623.2,3.2078]
[1749074010576,0.76204,2623.3,2623.2,7.8118]
[1749074011082,1.64502364,2623.3,2623.2,7.8118]
[1749074011381,2.85342364,2623.3,2623.2,7.8118]
[1749074011981,2.85342364,2623.3,2623.2,3.2078]
[1749074012181,2.85342364,2623.3,2623.2,7.8118]
[1749074012375,0.76207,2623.2,2623.1,0.00571788]
[1749074012576,2.85345364,2623.2,2623.1,4.60971788]
[1749074014682,2.85267141,2623.2,2623.1,4.60971788]
[1749074015294,1.64427141,2623.2,2623.1,4.60971788]
[1749074015483,3.8244,2623.5,2623.1,4.60971788]
[1749074015484,3.9698,2623.5,2623.4,0.76201]
[1749074015785,4.85177142,2623.5,2623.4,5.36701]
[1749074016479,4.85177142,2623.5,2623.4,0.76201]
[1749074016679,4.85177142,2623.5,2623.3,2.00431]
[1749074016680,0.76201,2623.4,2623.3,2.00431]
[1749074016880,0.76201,2623.4,2623.3,6.60931]
[1749074017080,0.76201,2623.4,2623.3,5.2471]
[1749074017273,1.64309217,2623.4,2623.3,5.2471]
[1749074017574,2.92669217,2623.4,2623.3,4.9864]
[1749074017984,0.76204,2623.3,2623.2,0.3814]
[1749074018185,2.92672217,2623.3,2623.2,22.5954]
[1749074019081,2.92656934,2623.3,2623.2,22.5954]
[1749074019476,2.92656934,2623.3,2623.2,0.3814]
[1749074019681,2.92656934,2623.3,2623.2,4.9864]
[1749074020287,2.92656934,2623.3,2623.2,0.3814]
[1749074020488,0.76207,2623.2,2623.1,17.61471788]
[1749074020788,1.64299934,2623.2,2623.1,22.21971788]
[1749074021586,1.64299934,2623.2,2623.1,22.98181788]
[1749074022588,1.64299934,2623.2,2623.1,0.76781788]
[1749074022797,1.64299934,2623.2,2623.1,23.36321788]
[1749074022987,1.64299934,2623.2,2623.1,22.60111788]
[1749074023982,1.64299934,2623.2,2623.1,23.36321788]
[1749074026589,1.64299934,2623.2,2623.1,22.21671788]
[1749074026791,2.90329934,2623.2,2623.1,22.21671788]
[1749074027287,2.02237,2623.2,2623.1,22.21671788]
[1749074027488,2.90301149,2623.2,2623.1,22.21671788]
[1749074027692,2.90301149,2623.2,2623.1,22.97881788]
[1749074027890,2.90301149,2623.2,2623.1,0.00571788]
[1749074028086,2.90301149,2623.2,2623.1,22.21671788]
[1749074028793,2.90301149,2623.2,2623.1,22.97881788]
[1749074029490,2.90301149,2623.2,2623.1,0.76781788]
[1749074029692,2.90301149,2623.2,2623.1,5.36981788]
[1749074030989,1.64271149,2623.2,2623.1,5.36981788]
[1749074032693,1.64329611,2623.2,2623.1,5.36981788]
[1749074033395,0.76207,2623.2,2623.1,5.36981788]
[1749074033790,1.64359012,2623.2,2623.1,5.36981788]
[1749074033991,0.88152012,2623.2,2623.1,5.36981788]
[1749074034184,3.96979,2623.5,2623.2,0.76207]
[1749074034493,0.76195,2623.7,2623.6,0.76194]
[1749074034686,1.64373509,2623.7,2623.6,5.36394]
[1749074037084,1.63677552,2623.7,2623.6,5.36394]
[1749074038592,1.63677552,2623.7,2623.6,4.602]
[1749074041596,1.63738015,2623.7,2623.6,4.602]
[1749074046103,1.63717956,2623.7,2623.6,4.602]
[1749074046604,0.76198,2623.5,2623.4,1.1434]
[1749074046804,0.76198,2623.5,2623.4,23.3504]
[1749074048600,0.76198,2623.5,2623.4,0.762]
[1749074048906,0.76198,2623.5,2623.4,4.9824]
[1749074049106,1.63713725,2623.5,2623.4,4.9824]
[1749074049307,1.63713725,2623.5,2623.4,22.5874]
[1749074049612,0.76204,2623.3,2623.2,4.58657]
[1749074049908,0.76204,2623.3,2623.2,4.96797]
[1749074050101,0.76204,2623.3,2623.2,27.17397]
[1749074051408,0.76204,2623.3,2623.2,27.82077]
[1749074052811,1.63736445,2623.3,2623.2,27.0587]
[1749074053117,1.63736445,2623.3,2623.2,4.8527]
[1749074053318,0.76204,2623.3,2623.2,27.0587]
[1749074053616,0.76204,2623.3,2623.2,4.8527]
[1749074053916,0.76204,2623.3,2623.2,27.0587]
[1749074054410,0.76204,2623.3,2623.2,27.82077]
[1749074055618,1.63746126,2623.3,2623.2,26.55427]
[1749074055815,1.63746126,2623.3,2623.2,27.15767]
[1749074056619,1.63746126,2623.3,2623.2,23.1878]
[1749074057012,1.63746126,2623.3,2623.2,22.5844]
[1749074057319,2.97026126,2623.3,2623.2,22.5844]
[1749074057522,0.76207,2623.2,2623.1,0.38711788]
[1749074057721,1.63749126,2623.2,2623.1,4.98611788]
[1749074057917,1.63749126,2623.2,2623.1,22.59011788]
[1749074058419,1.63749126,2623.2,2623.1,23.35221788]
[1749074058614,1.63749126,2623.2,2623.1,0.00571788]
[1749074058820,1.63749126,2623.2,2623.1,4.98611788]
[1749074059014,1.63749126,2623.2,2623.1,0.38711788]
[1749074059221,1.63749126,2623.2,2623.1,4.98611788]
[1749074059615,1.63788159,2623.2,2623.1,5.5078941]
[1749074059817,1.63788159,2623.2,2623.1,5.50789338]
[1749074060017,1.63788159,2623.2,2623.1,4.98611788]
[1749074060816,1.63788159,2623.2,2623.1,5.74821788]
[1749074061720,1.63788159,2623.2,2623.1,8.95601788]
[1749074062220,1.63788159,2623.2,2623.1,5.74821788]
[1749074062921,1.63788159,2623.2,2623.1,0.00571788]
[1749074063118,4.84568159,2623.2,2623.1,5.5121878]
[1749074063318,4.84568159,2623.2,2623.1,4.98711788]
[1749074063820,4.84568159,2623.2,2623.1,5.51219645]
[1749074064125,4.83761355,2623.2,2623.1,5.51219645]
[1749074064815,4.83761355,2623.2,2623.1,4.98711788]
[1749074065215,0.76215,2622.9,2622.8,23.4344]
[1749074065418,4.83769355,2622.9,2622.8,28.0344]
[1749074066018,1.62989355,2622.9,2622.8,28.79658]
[1749074066320,0.76215,2622.9,2622.8,28.79658]
[1749074066719,0.76215,2622.9,2622.8,24.19658]
[1749074066923,0.76215,2622.9,2622.8,28.0344]
[1749074067424,1.62154362,2622.9,2622.8,28.0344]
[1749074068715,1.62121967,2622.9,2622.8,28.0344]
[1749074069915,4.82901967,2622.9,2622.8,23.4344]
[1749074070115,4.82901967,2622.9,2622.8,28.0344]
[1749074070323,4.82901967,2622.9,2622.8,23.4344]
[1749074070624,4.82901967,2622.9,2622.8,28.0344]
[1749074071622,0.76221,2622.7,2622.6,0.00571788]
[1749074071920,0.76221,2622.7,2622.6,4.60571788]
[1749074072225,5.85906967,2622.7,2622.4,4.6]
[1749074072421,3.97007,2622.5,2622.4,4.6]
[1749074072628,4.82913967,2622.5,2622.4,4.6]
[1749074072828,6.10993967,2622.5,2622.4,4.6]
[1749074074328,0.76233,2622.3,2622.2,0.00571788]
[1749074074523,1.62139967,2622.3,2622.2,4.60671788]
[1749074074930,2.87469967,2622.3,2622.2,4.60671788]
[1749074078133,2.87469967,2622.3,2622.2,0.00571788]
[1749074078331,2.87469967,2622.3,2622.2,4.60671788]
[1749074082236,2.86419139,2622.3,2622.2,4.60671788]
[1749074083439,1.61089139,2622.3,2622.2,4.60671788]
[1749074086038,1.61089139,2622.3,2622.2,4.60571788]
[1749074088543,1.61089139,2622.3,2622.2,0.00571788]
[1749074088731,1.61089139,2622.3,2622.2,4.60571788]
[1749074089443,1.61089139,2622.3,2622.2,0.00571788]
[1749074089644,1.61089139,2622.3,2622.2,4.60571788]
[1749074090239,2.81779139,2622.3,2622.2,4.60571788]
[1749074091246,2.81893198,2622.3,2622.2,4.60571788]
[1749074092649,2.81893198,2622.3,2622.2,0.00571788]
[1749074092850,2.81893198,2622.3,2622.2,4.60571788]
[1749074093149,2.81893198,2622.3,2622.2,0.00571788]
[1749074093348,2.81893198,2622.3,2622.2,4.60671788]
[1749074093947,2.81893198,2622.3,2622.2,0.00571788]
[1749074094252,2.81893198,2622.3,2622.2,4.60671788]
[1749074099457,1.61203198,2622.3,2622.2,7.88e-06]
[1749074100351,2.85953198,2622.3,2622.2,7.88e-06]
[1749074109472,2.86378374,2622.3,2622.2,7.88e-06]
[1749074109676,3.51048374,2622.3,2622.2,7.88e-06]
[1749074113771,3.51022149,2622.3,2622.2,7.88e-06]
[1749074117284,8.51022149,2622.3,2622.2,7.88e-06]
[1749074117488,3.51022149,2622.3,2622.2,7.88e-06]
[1749074118285,2.65653,2622.3,2622.2,7.88e-06]
[1749074118487,3.50995041,2622.3,2622.2,7.88e-06]
[1749074120686,13.23395041,2622.3,2622.2,7.88e-06]
[1749074122786,12.38053,2622.3,2622.2,7.88e-06]
[1749074122986,13.22623886,2622.3,2622.2,7.88e-06]
[1749074123384,13.22623886,2622.3,2621.8,4.599]
[1749074123385,0.76244,2621.9,2621.8,3.76805]
[1749074123583,4.81594886,2621.9,2621.8,3.76805]
[1749074127595,4.81568067,2621.9,2621.8,3.76805]
[1749074127800,6.11818067,2621.9,2621.8,3.76805]
[1749074129591,0.76247,2621.8,2621.7,1.2649]
[1749074129891,1.60791067,2621.8,2621.7,1.2649]
[1749074131293,1.60791067,2621.8,2621.7,0.49092]
[1749074131497,0.76253,2621.6,2621.5,0.3814]
[1749074131797,0.76262,2621.3,2621.2,23.4474]
[1749074131995,4.81586067,2621.3,2621.2,28.0464]
[1749074132396,4.81586067,2621.3,2621.2,23.4474]
[1749074132591,4.81586067,2621.3,2621.2,28.0464]
[1749074133995,4.81586067,2621.3,2621.2,23.4474]
[1749074134391,4.81586067,2621.3,2621.2,28.0464]
[1749074134994,4.81586067,2621.3,2621.2,4.599]
[1749074135797,4.81586067,2621.3,2621.2,10.9315]
[1749074136002,4.05324067,2621.3,2621.2,11.69415]
[1749074137005,4.81586067,2621.3,2621.2,10.9315]
[1749074137398,4.81586067,2621.3,2621.2,1.3325]
[1749074137704,4.81586067,2621.3,2621.2,4.599]
[1749074138198,4.81586067,2621.3,2621.1,1.2782]
[1749074138199,0.76265,2621.2,2621.1,1.2782]
[1749074138404,1.60809067,2621.2,2621.1,5.8772]
[1749074140799,1.60809067,2621.2,2621.1,0.6491]
[1749074140996,1.60809067,2621.2,2621.1,5.2481]
[1749074141195,1.60809067,2621.2,2621.1,10.2481]
[1749074141506,0.84544067,2621.2,2621.1,11.01078]
[1749074142708,3.2078,2621.3,2621.2,0.76265]
[1749074142910,4.05342558,2621.3,2621.2,1.96525]
[1749074143109,4.05342558,2621.3,2621.2,7.59465]
[1749074143311,4.81604558,2621.3,2621.2,7.59465]
[1749074143805,3.97042,2621.3,2621.2,7.59465]
[1749074144497,3.2078,2621.3,2621.2,7.59465]
[1749074144904,3.2078,2621.7,2621.6,0.76251]
[1749074145202,4.05974705,2621.7,2621.6,5.36151]
[1749074145509,4.05972218,2621.7,2621.6,5.36151]
[1749074146207,4.82222218,2621.7,2621.6,5.36151]
[1749074148504,4.82222218,2621.7,2621.6,7.26991]
[1749074148707,1.61442218,2621.7,2621.6,7.26991]
[1749074149709,1.61442218,2621.7,2621.6,6.5074]
[1749074149905,1.61486438,2621.7,2621.6,6.5074]
[1749074151207,1.61486438,2621.7,2621.6,12.26993]
[1749074151410,1.61486438,2621.7,2621.6,7.26993]
[1749074151818,0.85236438,2621.7,2621.6,12.26993]
[1749074152818,1.61486438,2621.7,2621.6,12.26993]
[1749074153316,1.61486438,2621.7,2621.6,11.5074]
[1749074153514,1.61486438,2621.7,2621.6,12.26993]
[1749074154417,1.61516846,2621.7,2621.6,12.26993]
[1749074154610,0.85266846,2621.7,2621.6,12.26993]
[1749074155616,0.85266846,2621.7,2621.6,29.87193]
[1749074155813,0.7625,2621.8,2621.7,0.7625]
[1749074156016,1.61525989,2621.8,2621.7,7.0244]
[1749074156614,0.7625,2621.8,2621.7,7.0244]
[1749074156813,0.76247,2621.9,2621.8,0.76244]
[1749074157114,0.76247,2621.9,2621.8,2.16844]
[1749074158519,0.76244,2622.0,2621.9,0.76242]
[1749074158818,0.76244,2622.0,2621.9,5.35742]
[1749074159216,0.7624,2622.1,2622.0,0.76237]
[1749074159715,0.8523001,2622.1,2622.0,0.76237]
[1749074160122,0.8523001,2622.1,2622.0,2.05817]
[1749074160314,0.8523001,2622.1,2622.0,7.05817]
[1749074160818,0.76235,2622.3,2622.2,0.76236]
[1749074161019,0.76231,2622.4,2622.3,0.76233]
[1749074161211,0.7623,2622.4,2622.3,5.35733]
[1749074161413,0.85194718,2622.4,2622.3,5.35733]
[1749074161814,0.6661,2622.6,2622.5,0.76227]
[1749074162010,1.51771709,2622.6,2622.5,0.76227]
[1749074162210,0.85161709,2622.6,2622.5,0.76227]
[1749074162623,0.85161709,2622.6,2622.5,2.02447]